Cogmind - Beta 11.1 @@@ ROGUE MODE // 2022.04.29 @ 17:39:49 Player: Olga Result: Destroyed by S-10 Pest with Light Assault Rifle Performance ------------- Evolutions (1) 500 Regions Visited (2) 400 Robots Destroyed (8) 40 Value Destroyed (185) 185 Prototype IDs (0) 0 Alien Tech Used (0) 0 Bonus (0) 0 TOTAL SCORE: 1125 Bonus ------- None Cogmind --------- Core Integrity 0/400 Matter 286/300 Energy 100/100 System Corruption 0% Temperature Cool (6) Movement Core (50) Location -9/Materials Parts ------- > --- POWER (1) -------- (None) > --- PROPULSION (4) --- (None) > --- UTILITY (2) ------ Signal Interpreter > --- WEAPON (2) ------- (None) > --- INVENTORY (5) ---- Light Ion Engine Wheel Compact Wheel Weight Redist. System Maul Peak State ------------ > --- POWER ------------ Ion Engine > --- PROPULSION ------- Improved Hover Unit Improved Hover Unit Improved Hover Unit Improved Hover Unit > --- UTILITY ---------- Small Storage Unit Signal Interpreter > --- WEAPON ----------- Light Assault Rifle Maul > --- INVENTORY -------- Light Ion Engine Wheel Compact Wheel Light Assault Rifle Maul [Rating: 14] Favorites ----------- Power Ion Engine Engine Ion Engine Propulsion Improved Hover Unit Leg Aluminum Leg Hover Unit Improved Hover Unit Flight Unit Flight Unit Utility Small Storage Unit Storage Small Storage Unit Processor Signal Interpreter Weapon Light Assault Rifle Energy Gun Medium Laser Ballistic Gun Light Assault Rifle Impact Weapon Maul Build | -11 -10 -9 ------- Run | Scr Mat Mat Slots Evolved 2 | . . 2 Power . | . . . Propulsion 2 | . . 2 Utility . | . . . Weapon . | . . . Parts Attached 13 | . 5 8 Power . | . . . Engine . | . . . Core . | . . . Reactor . | . . . Propulsion 7 | . 4 3 Treads . | . . . Leg 2 | . 2 . Wheel . | . . . Hover 4 | . 2 2 Flight 1 | . . 1 Utility 2 | . . 2 Device . | . . . Storage . | . . . Processor 2 | . . 2 Hackware . | . . . Protection . | . . . Artifact . | . . . Weapon 4 | . 1 3 Energy Gun . | . . . Energy Cannon . | . . . Ballistic Gun 2 | . . 2 Ballistic Cannon . | . . . Launcher . | . . . Special Weapon . | . . . Impact Weapon 2 | . 1 1 Slashing Weapon . | . . . Piercing Weapon . | . . . Special Melee Weapon . | . . . Unidentified Prototypes . | . . . Parts Lost 8 | . . 8 Power 1 | . . 1 Propulsion 4 | . . 4 Utility 1 | . . 1 Weapon 2 | . . 2 Highest Loss Streak 5 | . . 5 To Critical Strikes . | . . . Average Slot Usage (%) 76 | . 85 68 Engine 10 | . 14 6 Leg 11 | . 25 . Hover 12 | . 2 21 Storage 10 | . 14 7 Processor 7 | . . 14 Energy Gun 6 | . 12 . Ballistic Gun 9 | . 14 6 Impact Weapon 6 | . 1 10 Naked Turns . | . . . Heaviest Build 14 | 13 14 14 Greatest Support 28 | 20 20 28 Greatest Overweight (x) 1 | . 1 1 Average Overweight (x) . | . . . Largest Inventory Capacity 8 | . 8 8 Average Capacity 7 | . 8 6 Most Carried 8 | . 8 7 Average Carried 6 | . 6 5 Final Capacity 8 | 8 8 5 Final Carried 7 | 6 7 5 Class Distribution -------------------- 100% | Mutant Dominant Class ---------------- Mutant | -10/Materials Mutant | -9/Materials Resources | -11 -10 -9 ----------- Run | Scr Mat Mat Matter Collected 299 | 200 69 30 Remotely . | . . . Salvage Created 271 | . 121 150 Parts 12 | . 5 7 Haulers Intercepted . | . . . Recyclers Shooed . | . . . Parts Field Recycled . | . . . Retrieved Matter . | . . . Parts Self-Destructed . | . . . Prevented . | . . . Kills | -11 -10 -9 ------- Run | Scr Mat Mat Combat Hostiles Destroyed 7 | . 3 4 Melee 3 | . . 3 Guns 3 | . 3 . Classes Destroyed 3 | . 1 2 Recycler 1 | . . 1 Swarmer 3 | . . 3 Grunt 4 | . 3 1 Best Kill Streak 2 | . 2 2 Combat Bots Only 2 | . 2 2 Max Kills in Single Turn 1 | . 1 1 Gunslinging . | . . . Exploded . | . . . Melee 1 | . . 1 Uniques/NPCs Destroyed . | . . . Combat | -11 -10 -9 -------- Run | Scr Mat Mat Damage Taken 1104 | . 201 903 Core 458 | . 57 401 Absorbed by Shields . | . . . Core Remaining (%) 88 | 100 77 . Volleys Fired 23 | . 19 4 Largest 2 | . 2 2 Hottest 70 | . 70 40 Shots Fired 44 | . 38 6 Gun 44 | . 38 6 Cannon . | . . . Launcher . | . . . Special . | . . . Kinetic 25 | . 19 6 Thermal 19 | . 19 . Explosive . | . . . Electromagnetic . | . . . Robot Hit Streak 10 | . 10 6 Robot Miss Streak 4 | . 4 2 Penetration Max . | . . . Secondary Targets . | . . . Shots Hit Robots 39 | . 25 14 Core Hits 12 | . 9 3 Critical Kills 1 | . . 1 Critical Parts Destroyed 1 | . . 1 Critical Strikes 2 | . . 2 Smash 2 | . . 2 Melee Attacks 27 | . . 27 Impact 27 | . . 27 Slashing . | . . . Piercing . | . . . Sneak Attacks 1 | . . 1 Combat Hostiles . | . . . Follow-up Attacks . | . . . Damage Inflicted 845 | . 269 576 Guns 305 | . 269 36 Cannons . | . . . Explosions . | . . . Melee 525 | . . 525 Ramming 15 | . . 15 Kinetic 142 | . 106 36 Thermal 163 | . 163 . Explosive . | . . . Electromagnetic . | . . . Impact 525 | . . 525 Slashing . | . . . Piercing . | . . . Highest Corruption . | . . . Average Corruption . | . . . Corruption Purged . | . . . Corruption Blocked . | . . . Overload Shots . | . . . Overflow Damage 147 | . . 147 Projectiles . | . . . Explosions . | . . . Melee 147 | . . 147 Knockbacks 3 | . . 3 Impact 3 | . . 3 Kinetic . | . . . Secondary . | . . . Self-Inflicted Damage 6 | . . 6 Shots . | . . . Rammed 4 | . . 4 Targets Rammed 4 | . . 4 Kicked . | . . . Crushed . | . . . Highest Temperature 244 | . 244 10 Average Temperature 76 | . 81 3 Received Heat Transfer 333 | . 117 216 Siege Activations . | . . . Robots Corrupted . | . . . Combat Hostiles . | . . . Parts Fried 1 | . . 1 Impact Corruptions 8 | . . 8 Robots Melted . | . . . Combat Hostiles . | . . . Parts Melted 2 | . 2 . Heat Transferred 481 | . 481 . Parts Sabotaged . | . . . Parts Stolen . | . . . Parts Stripped . | . . . Power Chain Reactions . | . . . Missiles Intercepted . | . . . Alert | -11 -10 -9 ------- Run | Scr Mat Mat Peak Influence 200 | . 131 200 Initial 55 | . . 55 Average 92 | . 63 116 Maximum Alert Level 1 | . . 1 Low Security (%) 98 | . 100 96 Level 1 1 | . . 3 Level 2 . | . . . Level 3 . | . . . Level 4 . | . . . Level 5 . | . . . High Security . | . . . Max Security . | . . . Squads Dispatched 2 | . 1 1 Investigation 2 | . 1 1 Extermination . | . . . Reinforcement . | . . . Assault . | . . . Garrison . | . . . Intercept . | . . . Searches Triggered . | . . . Construction Impeded . | . . . Haulers Reinforced . | . . . Active Scanning Responses . | . . . Cargo Convoy Interrupts . | . . . Stealth | -11 -10 -9 --------- Run | Scr Mat Mat Distress Signals . | . . . Communications Jammed . | . . . Distress Signals . | . . . Times Spotted 23 | . 6 17 Peak Tracking Total 7 | . 3 7 Tactical Retreats 4 | . . 4 Traps | -11 -10 -9 ------- Run | Scr Mat Mat Traps Triggered 2 | . 1 1 Indirectly . | . . . Trap Hack Attempts . | . . . Triggered . | . . . Disarmed . | . . . Reprogrammed . | . . . Reused . | . . . Traps Extracted . | . . . Installed . | . . . Triggered . | . . . Machines | -11 -10 -9 ---------- Run | Scr Mat Mat Machines Disabled . | . . . Max in Single Turn . | . . . Machines Sabotaged . | . . . Garrisons Compromised . | . . . Overloaded Fab Kills . | . . . Hacking | -11 -10 -9 --------- Run | Scr Mat Mat Machines Accessed 9 | . 2 7 Terminals 8 | . 2 6 Fabricators . | . . . Repair Stations 1 | . . 1 Recycling Units . | . . . Scanalyzers . | . . . Garrison Access . | . . . Total Hacks 23 | . 6 17 Successful 9 | . 2 7 Failed 14 | . 4 10 Catastrophic 2 | . 1 1 Database Lockouts . | . . . Manual 17 | . 6 11 Terminals 20 | . 6 14 Fabricators . | . . . Repair Stations 3 | . . 3 Recycling Units . | . . . Scanalyzers . | . . . Garrison Access . | . . . Terminal Hacks 8 | . 2 6 Terminal Index 1 | . 1 . Unreport Threat 1 | . . 1 Recall Investigation 1 | . . 1 Zone Layout 5 | . 1 4 Fabricator Hacks . | . . . Repair Station Hacks 1 | . . 1 Scan Component 1 | . . 1 Recycling Unit Hacks . | . . . Scanalyzer . | . . . Garrison Access Hacks . | . . . Unauthorized Hacks . | . . . Terminals . | . . . Fabricators . | . . . Repair Stations . | . . . Recycling Units . | . . . Scanalyzers . | . . . Garrison Access . | . . . Data Cores Recovered . | . . . Used . | . . . Hacking Detections 5 | . 1 4 Full Trace Events 1 | . . 1 Feedback Events . | . . . Feedback Blocked . | . . . Robot Schematics Acquired . | . . . Robots Built . | . . . Authchips . | . . . Time . | . . . Total Robot Build Rating . | . . . Part Schematics Acquired . | . . . Parts Built . | . . . Authchips . | . . . Time . | . . . Total Part Build Rating . | . . . Parts Repaired . | . . . Time . | . . . Parts Recycled . | . . . Recycled Matter . | . . . Retrieved Matter . | . . . Retrieved Components . | . . . Parts Scanalyzed . | . . . Part Schematics Acquired . | . . . Parts Damaged . | . . . Bothacking | -11 -10 -9 ------------ Run | Scr Mat Mat Used RIF Installer . | . . . Robots Hacked . | . . . Non-combat . | . . . Combat . | . . . Robot Hacks Applied . | . . . Relay Couplers Released . | . . . Fabnet Peak Effective % . | . . . Robots Rewired . | . . . Allies Hacked . | . . . Hacks Repelled . | . . . Allies | -11 -10 -9 -------- Run | Scr Mat Mat Total Allies . | . . . Largest Group . | . . . Highest-Rated Group . | . . . Highest-Rated Ally . | . . . Total Orders . | . . . Ally Attacks . | . . . Total Damage . | . . . Kills . | . . . Allies Corrupted . | . . . Allies Melted . | . . . Intel | -11 -10 -9 ------- Run | Scr Mat Mat Robot Analysis Total . | . . . Derelict Logs Recovered . | . . . Drone Launches . | . . . Drone Recoveries . | . . . Exploration | -11 -10 -9 ------------- Run | Scr Mat Mat Turns Passed 564 | . 260 304 Spaces Moved 558 | 1 168 389 Core 117 | . . 117 Treads . | . . . Legs 149 | 1 148 . Wheels . | . . . Hover 224 | . 20 204 Flight 68 | . . 68 Fastest Speed 40 | 120 56 40 Average Speed 68 | 120 112 49 Slowest Speed 130 | 120 130 100 Overloaded Moves . | . . . Propulsion Burnouts . | . . . Robots Hopped 3 | . . 3 Cave-ins Triggered . | . . . Exploration Rate (%) 21 | 2 29 34 Regions Visited 2 Branch Regions . Pre-discovered Areas . | . . . Known Exits Taken . | . . . Unknown Exits Taken 2 | 1 1 . Scrap Searched . | . . . Spaces Dug 4 | . . 4 Terrain Destroyed 4 | . . 4 Melee 4 | . . 4 Projectile . | . . . AOE . | . . . Terrain Rammed . | . . . Walls Destroyed . | . . . Machines Disabled . | . . . Actions | -11 -10 -9 --------- Run | Scr Mat Mat Total 644 | . 204 440 Wait 8 | . 3 5 Move 550 | . 167 383 Hop 3 | . . 3 Pick Up 6 | . 3 3 Fast Attach 5 | . 3 2 Attach 5 | . . 5 Detach . | . . . Swap 3 | . 2 1 Drop 10 | . 7 3 Fire 23 | . 19 4 Melee 27 | . . 27 Ram 4 | . . 4 Kick . | . . . Crush . | . . . Escape Stasis . | . . . Rewire . | . . . Trap . | . . . Miscellaneous . | . . . Route ------- -11/Scrapyard -10/Materials -9/Materials History --------- Turn | Location | Event 1 | -11/Scrapyard | Discovered new exit (range 0) 1 | -11/Scrapyard | Entered Materials 206 | -10/Materials | Discovered new exit (range 16) 261 | -10/Materials | Entered another Materials area 261 | -9/Materials | Evolved 2 slots: Propulsion x2 311 | -9/Materials | Build established: Mutant 452 | -9/Materials | Core integrity fell below 50% 479 | -9/Materials | Lost 5 parts (1p3n1w) 562 | -9/Materials | Core integrity fell below 20% 565 | -9/Materials | Destroyed by S-10 Pest with Light Assault Rifle Last Messages --------------- Retrieving Zone 8Y layout... Downloaded map data. 00493_ Connecting with Repair Station... >>Scan(Flight Unit) Scanning Flight Unit... Ready to Repair: Flight Unit Rating: 1 Time: 13 00493_ Dropped Broken Flight Unit. 00500_ K-01 Serf collects debris. 00557_ K-01 Serf destroyed. 00560_ R-06 Scavenger collects Lgt. Ion Engine. 00561_ G-47 Trooper misfires. 00561_ Maul severed. 00562_ Slammed into S-10 Pest. 00564_ R-06 Scavenger collects Maul. 00564_ Slammed into S-10 Pest. 00565_ Visual Processing Unit destroyed. 00565_ Slammed into S-10 Pest. Map ----- +----------------------------------------------------+ | ?????????????????????????????????????????????????? | | ?????????????????????????????????????????????????? | | ?????????????????????????????????????????????????? | | ?????????????????????????????????????????????????? | | ?????????????????????????????????????????????????? | | ?????????????????????????????????????????????????? | | ?????????????????????????????????????????????????? | | ?????????????????????????????????????????????????? | | ?????????????????????????????????????????????????? | | ?????????????????????????????????????????????????? | | ?????????????????????????????????????????????????? | | ?????????????????????????????????????????????????? | | ????????????????????????+????????????????????????? | | ???????????????????????? ????????????????????????? | | ???????????????????????? ##??????????????????????? | | ???????????????????????? ?????????????????##+### | | ???????????????????????? ????????????????# # | | ???????????????????????? ????????????????? | | ????????????????????????# #????????????????? | | ????????????????????????# #??#####?????????? ? | | ????????????????????????#s#??# #?????????? ? | | ?????????? + "T" #?# #??# #??###+#???# #? | | ?????????? # """ #?# #??# #??# ???# #? | | ?????????? #####+###+#?# #??# [ #??# ???+ #? | | ?????????? ##??# #?# #?#s#??# #??# ???# #? | | ?????????? #??# #?# #?#@#??# #??#+###???# #? | | ?????????? #??# #?# #?# #??# [!#### ###???# #? | | ??????????T #??# ### ###s######+## ##### #? | | ?????????? #??# ^ l " #? | | ?????????? #??# r "T #? | | ??????????####??# % #? | | ????????????????# ######## ####%### ##### ## | | ????????????????# #??????# #??# #?#######???# # | | ??????????#######+##?????# #??# #???????????# / | | ?????????? #???###g####+##??????????# # | | ?????????? #???# #?????????## ## | | ?????????? """ """ #???# T ########### # | | ?????????? """ """ #???# # # | | ?????????? """ """ #???# + # | | ?????????? #???# """ """ # # | | ?????????? #???# """ """ ########+## # | | ?????????? #???# """ """ #??# ####### | | ??????????####/#####???# #??# """ #???### | | ??????????## #?????###########??# "T" #???# | | ?????????? #??????????????????# #???# | | ?????????? #??????????????????# #???# " | | ?????????? #??????????????????# #???# " | | ?????????? #??????????????????##### ###### " | | ??????????""" ##??????????????????????# T # " | | ??????????""" #???????????????????????# # " | +----------------------------------------------------+ Best States ------------- Heat Dissipation 28 Energy Generation 10 Energy Capacity 250 Matter Stores 300 Matter Capacity 300 Sight Range 18 Terrain Scan Density 10 Evasion (%) 62 Item Schematics ----------------- None Robot Schematics ------------------ None Fabricated ------------ Nothing Alien Tech Used ----------------- None Achievements -------------- None Challenges ------------ None Game ------ Seed NetworkEnhancedGenerator Manual? 0 Play Time 00:10:41 Cumulative 117.7 hours Start 2022.04.29 @ 17:31:29 End 2022.04.29 @ 17:39:49 Sessions 1 Manual Loads 0 Difficulty Rogue Special Mode None Game No. 148 Rogue 147 Adventurer 0 Explorer 1 Win Type - Total 2 Types 2/0/0/0/0/0/0/0/0 Lore% 57 Gallery% 56 Achievement% 46 Wizard Run 0 Options --------- ASCII 1 Keyboard 0 Movement Vi Keybinds 0 Fullscreen 1 Font 18/SmallcapsGlow Map View 76x50 Tactical HUD 1 Map Filters NONE Filters NONE Steam 1 RUN: 9798b1f0-0c8c-4101-bb44-2ba891e1ae13